bitfinex-derivatives/quotes_ETHF0:USTF0_20260223
["timestamp","ask_amount","ask_price","bid_price","bid_amount"]
[1771870944791,2.58923962,1859.4,1858.6,2.39458526]
[1771870945589,2.59414824,1859.4,1858.6,2.39861347]
[1771870948280,0.00490862,1859.4,1858.8,2.39458526]
[1771870948489,2.58923962,1859.6,1858.8,2.39458526]
[1771870948686,2.58923962,1860.0,1859.1,2.39458526]
[1771870949483,2.59448418,1860.0,1859.1,2.39458526]
[1771870950490,2.59448418,1860.0,1859.1,2.66355526]
[1771870950695,2.58923962,1860.8,1859.6,2.39458526]
[1771870951189,2.58923962,1860.5,1859.5,2.39458526]
[1771870951691,2.59458431,1860.5,1859.5,2.39458526]
[1771870951885,6.03216237,1860.3,1859.1,2.39458526]
[1771870952089,6.03216237,1860.3,1858.9,2.39458526]
[1771870952090,2.58923962,1860.2,1858.9,2.39458526]
[1771870952485,2.58923962,1860.0,1859.0,2.39458526]
[1771870952887,2.58923962,1860.1,1859.0,2.39458526]
[1771870953088,2.58923962,1860.1,1859.2,2.39458526]
[1771870954294,2.58923962,1860.1,1858.9,41.069]
[1771870954295,2.58923962,1860.1,1859.0,2.39458526]
[1771870955091,2.58923962,1859.7,1858.7,2.39458526]
[1771870956893,2.85816962,1859.4,1858.1,2.39458526]
[1771870957198,2.58923962,1859.1,1857.9,2.66371526]
[1771870958094,2.5941182,1859.1,1857.9,2.66878028]
[1771870958799,2.5941182,1859.1,1857.9,2.39965028]
[1771870959390,2.58923962,1858.9,1857.9,2.39965028]
[1771870959796,2.58923962,1858.4,1857.0,2.39458526]
[1771870959995,2.85830962,1858.4,1857.0,2.39458526]
[1771870960300,2.85830962,1858.4,1857.2,2.39458526]
[1771870960601,2.85830962,1858.4,1857.3,2.39458526]
[1771870960799,2.85830962,1858.4,1857.3,2.39972683]
[1771870961199,2.58923962,1858.4,1857.3,2.66895683]
[1771870961404,2.58923962,1858.4,1857.5,2.39458526]
[1771870965907,2.58923962,1858.4,1857.3,2.39972683]
[1771870966711,2.58923962,1858.4,1857.5,2.39458526]
[1771870968010,2.35303546,1858.9,1857.7,2.35981509]
[1771870968408,2.35303546,1858.9,1857.9,2.35981509]
[1771870968811,2.35303546,1858.9,1858.1,2.35981509]
[1771870971010,2.35791404,1859.1,1858.3,2.35981509]
[1771870971403,2.35791404,1859.1,1858.5,2.35981509]
[1771870971808,2.35791404,1859.1,1858.4,2.35981509]
[1771870973811,0.00487858,1859.1,1858.4,2.35981509]
[1771870974011,2.35791404,1859.1,1858.6,2.35981509]
[1771870974414,0.00487858,1859.1,1858.6,2.35981509]
[1771870974914,2.35791404,1859.1,1858.6,2.35981509]
[1771870976918,0.00487858,1859.1,1858.6,2.35981509]
[1771870977817,2.35303546,1859.3,1858.6,2.35981509]
[1771870978718,2.35709335,1859.3,1858.6,2.35981509]
[1771870980517,2.35303546,1860.5,1859.2,2.35981509]
[1771870980717,2.35303546,1860.4,1859.2,2.35981509]
[1771870980915,2.35303546,1860.4,1859.4,2.35981509]
[1771870981416,2.35914938,1860.4,1859.4,2.36419283]
[1771870981615,2.35914938,1860.4,1859.6,2.35981509]
[1771870983517,5.375,1861.4,1859.6,2.35981509]
[1771870983518,2.35303546,1860.8,1860.1,2.35981509]
[1771870983821,2.35303546,1861.0,1860.2,7.13124287]
[1771870984222,2.35303546,1861.0,1860.1,43.15981509]
[1771870984517,2.35810298,1861.0,1859.9,2.35981509]
[1771870986115,2.35810298,1861.0,1859.9,2.62866509]
[1771870987722,2.35810298,1861.0,1860.1,2.35981509]
[1771870988214,2.35810298,1861.0,1859.6,6.61487]
[1771870988215,2.35810298,1861.0,1860.3,2.35981509]
[1771870988522,0.00506752,1861.0,1860.3,2.35981509]
[1771870989720,2.35303546,1861.4,1860.5,2.35981509]
[1771870990022,13.86887,1862.2,1860.7,2.35981509]
[1771870990023,2.35303546,1861.6,1860.7,2.35981509]
[1771870990419,2.35303546,1861.6,1860.9,2.35981509]
[1771870990816,2.35935457,1861.6,1860.9,2.3664161]
[1771870992123,0.00631911,1861.6,1860.9,2.3664161]
[1771870993226,2.35935457,1861.6,1860.9,2.3664161]
[1771870995329,2.35303546,1862.0,1861.1,2.35981509]
[1771870995528,2.35303546,1862.2,1861.1,2.35981509]
[1771870995729,2.35303546,1862.2,1861.3,2.35981509]
[1771870996329,2.35955644,1862.2,1861.3,2.35981509]
[1771870997020,2.35955644,1862.2,1861.5,2.35981509]
[1771870997021,0.00652098,1862.2,1861.5,2.35981509]
[1771870997425,0.00652098,1862.2,1861.7,2.35981509]
[1771870997630,2.35303546,1862.6,1861.7,2.35981509]
[1771870998428,2.48782646,1862.8,1861.9,2.40405058]
[1771870998629,2.49281211,1862.8,1861.9,2.40405058]
[1771870999333,2.48782646,1863.0,1862.1,2.40405058]
[1771871000430,2.4918031,1863.0,1862.1,2.40405058]
[1771871001428,2.4918031,1863.0,1862.0,0.26855]
[1771871001429,2.4918031,1863.0,1861.6,2.37710635]
[1771871001829,2.4918031,1863.0,1861.8,2.37710635]
[1771871003740,2.4918031,1863.0,1862.0,2.37710635]
[1771871007735,0.00397664,1863.0,1862.2,2.37710635]
[1771871008142,0.00397664,1863.0,1862.4,2.37710635]
[1771871008341,0.00397664,1863.0,1862.4,2.38094743]
[1771871009041,2.29406164,1863.0,1862.4,2.38094743]
[1771871009444,2.29406164,1863.0,1862.4,0.00384108]
[1771871012135,2.29406164,1863.0,1861.9,2.37710635]
[1771871012641,2.56248164,1863.0,1861.7,2.37710635]
[1771871013035,2.56248164,1863.0,1861.7,2.38101555]
[1771871013743,2.56248164,1863.0,1861.9,2.37710635]
[1771871014135,2.29406164,1863.0,1862.1,2.37710635]
[1771871014339,2.29406164,1863.0,1862.0,0.26855]
[1771871014340,2.29406164,1863.0,1862.3,2.37710635]
[1771871014540,2.290085,1863.7,1862.3,2.37710635]
[1771871014740,2.290085,1863.5,1862.3,2.37710635]
[1771871015641,2.29567997,1863.5,1862.3,2.37710635]
[1771871015841,2.290085,1863.3,1862.3,2.37710635]
[1771871020845,2.290085,1863.1,1862.3,2.37710635]
[1771871021444,2.290085,1862.9,1861.8,2.37710635]
[1771871021843,2.290085,1862.9,1861.9,2.37710635]
[1771871023851,2.290085,1862.7,1861.9,2.37710635]
[1771871024646,2.290085,1862.5,1861.9,2.37710635]
[1771871024850,2.290085,1862.5,1861.7,2.38101555]
[1771871025552,2.290085,1862.9,1861.7,2.38101555]
[1771871025755,2.290085,1862.7,1861.7,2.38101555]
[1771871026057,2.79467881,1862.6,1861.7,2.38101555]
[1771871026251,2.290085,1862.6,1861.7,2.38101555]
[1771871026451,0.50484566,1862.5,1861.7,2.38101555]
[1771871026648,2.290085,1862.6,1861.9,2.37710635]
[1771871026857,2.290085,1862.9,1861.9,2.37710635]
[1771871027058,2.79491424,1862.8,1861.9,2.37710635]
[1771871027247,2.79491424,1862.7,1861.9,2.37710635]
[1771871027449,2.290085,1862.7,1861.9,2.37710635]
[1771871029059,2.29833,1862.9,1861.9,2.64565635]
[1771871029356,0.50491655,1862.8,1861.9,2.64565635]
[1771871029558,2.29833,1862.8,1861.9,2.64565635]
[1771871029753,2.29833,1862.8,1861.9,2.37710635]
[1771871030761,0.2684,1863.1,1862.1,2.23720829]
[1771871030762,2.29833,1863.0,1862.1,2.23720829]
[1771871031059,2.29833,1862.8,1862.1,2.23720829]
[1771871033558,2.29833,1863.2,1862.1,2.23720829]
[1771871033752,2.29833,1863.0,1862.1,2.23720829]
[1771871033951,2.80329236,1862.9,1862.1,2.23720829]
[1771871034161,2.29833,1862.9,1862.1,2.23720829]
[1771871034860,0.5049659,1862.8,1862.1,2.23720829]
[1771871035062,2.29833,1862.9,1862.1,2.23720829]
[1771871035359,0.50496585,1862.8,1862.1,2.23720829]
[1771871035559,2.29833,1862.9,1862.1,2.23720829]
[1771871035760,0.50497013,1862.8,1862.1,2.23720829]
[1771871035960,2.29833,1862.9,1862.1,2.23720829]
[1771871037764,2.29833,1862.7,1862.1,2.23720829]
[1771871039162,2.29833,1863.0,1862.1,2.50573829]
[1771871039364,2.29833,1863.0,1862.3,2.23720829]
[1771871040155,2.29833,1863.3,1862.5,2.23720829]
[1771871040356,2.29833,1863.3,1862.7,2.23720829]
[1771871040956,2.29833,1863.3,1862.3,2.23720829]
[1771871041155,2.29833,1863.1,1862.3,2.23720829]
[1771871041863,2.29833,1863.4,1862.3,2.23720829]
[1771871042165,2.29833,1863.2,1862.3,2.23720829]
[1771871042365,2.29833,1863.0,1862.3,2.23720829]
[1771871043061,2.29833,1862.8,1861.9,2.23720829]
[1771871043266,2.29833,1862.6,1861.7,0.0039092]
[1771871043458,2.29833,1862.4,1861.5,2.23720829]
[1771871043661,2.29833,1862.2,1861.5,2.23720829]
[1771871044059,2.29833,1862.2,1861.3,2.23720829]
[1771871044458,2.29833,1862.2,1861.3,2.24315512]
[1771871044656,3.69408779,1862.7,1861.3,0.00594683]
[1771871044657,2.29833,1862.0,1861.3,0.00594683]
[1771871044863,2.30395989,1862.0,1861.3,2.24315512]
[1771871045058,7.67033,1862.6,1861.6,2.23720829]
[1771871045265,2.29833,1862.6,1861.6,2.23720829]
[1771871046062,2.30516525,1862.6,1861.6,2.23720829]
[1771871047365,2.30516525,1862.6,1861.4,2.23720829]
[1771871047669,2.29833,1862.1,1861.3,0.00594683]
[1771871047968,2.29833,1861.9,1861.3,0.00594683]
[1771871048163,2.29833,1861.9,1861.3,2.24315512]
[1771871048867,2.29833,1861.9,1861.3,0.00594683]
[1771871049868,2.29833,1861.9,1861.3,2.24315512]
[1771871051965,2.29833,1861.9,1861.3,0.00594683]
[1771871055166,2.29833,1861.9,1861.3,2.24315512]
[1771871057468,2.29833,1861.9,1861.3,0.00594683]
[1771871058975,2.29833,1861.9,1861.3,2.39671277]
[1771871059172,2.29833,1861.9,1861.3,0.00594683]
[1771871060576,0.26848,1862.5,1861.3,2.3393434]
[1771871060874,2.17409926,1862.4,1861.5,2.33339657]
[1771871061578,2.17409926,1862.4,1861.7,2.33339657]
[1771871062872,0.00683525,1862.6,1861.3,0.00594683]
[1771871062873,2.18093451,1862.6,1861.9,2.33339657]
[1771871063268,0.00683525,1862.6,1861.9,2.33339657]
[1771871063473,0.00683525,1862.6,1862.1,2.33339657]
[1771871063673,2.17409926,1862.8,1862.1,2.33339657]
[1771871064478,2.17409926,1863.4,1862.3,2.33339657]
[1771871064678,2.17816143,1863.4,1862.3,2.33339657]
[1771871067475,2.17816143,1863.4,1862.5,2.33339657]
[1771871069782,2.17816143,1863.4,1862.1,2.33339657]
[1771871069983,2.17816143,1863.4,1862.3,2.33339657]
[1771871070173,2.17816143,1863.4,1862.2,0.26852]
[1771871070375,2.17816143,1863.4,1862.2,2.60191657]
[1771871070681,2.17409926,1863.1,1862.0,2.33339657]
[1771871072880,2.17409926,1863.1,1862.2,2.33339657]
[1771871074074,2.17409926,1863.3,1862.4,2.33339657]
[1771871075879,2.17409926,1863.3,1862.3,0.26851]
[1771871075880,2.17409926,1864.3,1863.0,2.33339657]
[1771871076078,2.17409926,1863.9,1863.1,2.33339657]
[1771871076283,2.17409926,1863.9,1863.2,2.33339657]
[1771871076978,2.18019536,1863.9,1863.2,2.33988935]
[1771871077184,0.00406217,1863.8,1863.2,2.33988935]
[1771871077380,2.17816143,1863.8,1863.2,0.00649278]
[1771871077579,2.17409926,1863.6,1863.0,2.33339657]
[1771871078080,2.18019536,1863.9,1863.2,2.33339657]
[1771871078884,2.18019536,1863.9,1863.2,2.33943356]
[1771871079977,0.0060961,1863.9,1863.2,2.33943356]
[1771871080174,2.17409926,1864.2,1863.4,2.33339657]
[1771871081081,2.1784003,1864.2,1863.4,2.33339657]
[1771871081282,2.1784003,1864.2,1863.2,0.00603699]
[1771871081482,2.17409926,1864.0,1863.2,0.00603699]
[1771871082281,2.17409926,1864.0,1863.2,2.33943356]
[1771871084485,2.1784003,1864.2,1863.2,2.60780356]
[1771871086178,2.1784003,1864.2,1863.4,2.33339657]
[1771871088488,2.1784003,1864.2,1863.2,2.33069147]
[1771871089786,2.1784003,1864.2,1863.2,0.00603699]
[1771871090490,2.13508979,1864.0,1863.2,2.33069147]
[1771871091087,2.13508979,1863.8,1863.2,0.00603699]
[1771871091392,2.13508979,1863.8,1862.8,2.32465448]
[1771871092292,2.13508979,1863.8,1862.8,2.32849703]
[1771871093185,2.13508979,1863.8,1863.0,2.32465448]
[1771871093786,2.13508979,1864.0,1863.0,2.32465448]
[1771871097288,2.13508979,1863.2,1862.3,2.32465448]
[1771871097493,2.13508979,1863.0,1862.3,2.32465448]
[1771871097886,2.13508979,1862.8,1861.5,2.32465448]
[1771871098093,2.13508979,1862.6,1861.5,2.32465448]
[1771871098295,2.14200818,1862.6,1861.5,43.129183]
[1771871098495,2.14200818,1862.6,1861.6,2.32465448]
[1771871098795,0.00691839,1862.6,1861.9,0.26856]
[1771871099094,2.13508979,1863.0,1862.0,2.32465448]
[1771871100096,2.13952827,1863.0,1862.0,2.32465448]
[1771871100293,2.13508979,1862.8,1861.8,2.32465448]
[1771871100687,2.13508979,1862.8,1861.8,2.59323448]
[1771871100893,2.13952827,1863.0,1862.0,2.32465448]
[1771871101392,0.00443848,1863.0,1862.4,2.32465448]
[1771871101588,2.13952827,1863.0,1862.4,2.32465448]
[1771871101997,0.00443848,1863.0,1862.4,2.32465448]
[1771871102595,2.13508979,1863.4,1862.6,2.32465448]
[1771871103700,2.13937285,1863.4,1862.6,2.32465448]
[1771871104091,0.00428306,1863.4,1862.8,2.32465448]
[1771871104694,2.13508979,1864.3,1863.0,2.32465448]
[1771871104899,2.13508979,1864.1,1863.0,2.32465448]
[1771871105700,2.14179213,1864.1,1863.2,2.32465448]
[1771871106799,2.14179213,1864.1,1863.0,0.00383295]
[1771871107099,2.13508979,1863.9,1863.0,2.32848743]
[1771871112209,2.13508979,1863.9,1863.0,0.00383295]
[1771871112507,2.13508979,1863.7,1863.0,0.00383295]
[1771871114207,2.13508979,1863.7,1863.0,2.32848743]
[1771871115911,0.00670234,1864.1,1863.0,2.32848743]
[1771871116111,2.13508979,1864.0,1863.0,2.32848743]
[1771871117211,2.13508979,1863.8,1863.0,2.32848743]
[1771871118614,2.26480849,1863.6,1863.0,2.32848743]
[1771871119820,2.26480849,1863.6,1863.0,0.00383295]
[1771871120114,2.26480849,1863.6,1863.0,2.21829496]
[1771871121317,2.26480849,1863.6,1863.0,0.00383295]
[1771871122609,2.26480849,1863.6,1863.0,2.21829496]
[1771871123012,2.26480849,1863.6,1863.0,0.00383295]
[1771871123219,0.26831,1863.7,1862.2,2.21446201]
[1771871123220,2.17271083,1863.2,1862.2,2.21446201]
[1771871123610,2.17271083,1863.0,1862.2,2.21446201]
[1771871123917,2.17271083,1863.7,1862.4,2.21446201]
[1771871124110,2.17271083,1863.7,1862.4,2.22059634]
[1771871124320,2.17271083,1863.7,1862.6,2.21446201]
[1771871124515,2.17271083,1863.5,1862.6,2.21446201]
[1771871125823,2.17271083,1863.5,1862.6,2.48291201]
[1771871126218,2.17271083,1863.3,1862.6,2.21446201]
[1771871126516,2.17271083,1863.3,1862.4,2.22059634]
[1771871126919,2.17271083,1863.1,1862.4,2.22059634]
[1771871130921,2.17271083,1862.9,1862.4,2.22059634]
[1771871131620,2.17271083,1862.9,1862.4,0.00613433]
[1771871132713,2.17271083,1862.9,1862.0,2.21446201]
[1771871133822,2.17271083,1862.9,1862.0,2.22008058]
[1771871136223,2.17271083,1863.3,1862.2,2.21446201]
[1771871136427,2.44109083,1863.3,1862.2,2.21446201]
[1771871136623,2.17271083,1863.1,1862.2,2.21446201]
[1771871138323,2.17271083,1862.9,1862.2,2.21446201]
[1771871139124,2.17271083,1862.9,1862.0,2.22008058]
[1771871143027,2.17271083,1863.3,1862.3,0.26851]
[1771871143226,2.17271083,1863.3,1862.4,2.21446201]
[1771871143526,0.26829,1863.8,1862.7,2.21446201]
[1771871143527,2.17271083,1863.7,1862.7,2.21446201]
[1771871145526,2.17271083,1863.5,1862.7,2.21446201]
[1771871145731,2.17271083,1863.3,1862.5,2.21446201]
[1771871145927,2.17271083,1863.3,1862.0,0.00561857]
[1771871146133,2.17271083,1863.3,1862.1,2.21446201]
[1771871146327,2.17271083,1863.1,1862.1,2.21446201]
[1771871147823,2.19980042,1862.9,1862.1,2.21446201]
[1771871148026,2.19980042,1862.7,1862.0,0.00561857]
[1771871148221,2.20549576,1862.7,1862.0,0.00561857]
[1771871148931,2.19980042,1862.5,1862.0,0.00561857]
[1771871155933,2.19980042,1862.5,1862.0,2.24664986]
[1771871156538,2.20549576,1862.7,1862.0,2.24664986]
[1771871156733,2.47394576,1862.7,1862.0,2.24664986]
[1771871156935,2.19980042,1862.5,1862.0,2.24664986]
[1771871157637,2.19980042,1862.5,1862.0,0.00561857]
[1771871157838,2.19980042,1862.5,1862.0,2.24664986]
[1771871158534,2.19980042,1862.5,1862.0,0.00561857]
[1771871158736,2.19980042,1862.5,1862.0,2.24664986]
[1771871160834,2.19980042,1862.5,1862.0,0.00561857]
[1771871161039,2.19980042,1862.3,1861.1,2.24103129]
[1771871161236,2.19980042,1861.9,1861.1,2.24103129]
[1771871161440,2.19980042,1861.9,1861.0,2.24103129]
[1771871162039,2.19980042,1861.9,1861.0,2.24614138]
[1771871162346,2.19980042,1861.7,1861.0,0.00511009]
[1771871162646,11.09011753,1862.1,1861.0,2.24614138]
[1771871162647,2.19980042,1861.5,1861.0,2.24614138]
[1771871163041,2.19980042,1861.5,1861.0,0.00511009]
[1771871163245,2.19980042,1861.5,1861.0,2.24614138]
[1771871164845,2.19980042,1861.5,1861.0,0.00511009]
[1771871165045,2.19980042,1861.5,1860.6,2.24103129]
[1771871165248,2.19980042,1861.3,1860.2,2.24103129]
[1771871165448,2.19980042,1861.1,1859.9,2.24103129]
[1771871165748,2.19980042,1860.8,1859.9,2.24103129]
[1771871166146,2.19980042,1860.7,1859.9,0.00577521]
[1771871166341,2.19980042,1860.7,1859.9,2.2468065]
[1771871166548,0.00552939,1860.8,1860.1,2.24103129]
[1771871166752,2.20532981,1860.8,1860.1,2.24103129]
[1771871168546,0.00552939,1860.8,1860.1,2.24103129]
[1771871170351,2.20532981,1860.8,1860.1,2.24103129]
[1771871171848,2.20532981,1860.8,1860.0,2.24103129]
[1771871172253,2.20532981,1860.8,1860.1,2.24103129]
[1771871172453,0.00552939,1860.8,1860.1,2.24103129]
[1771871173356,0.00552939,1860.8,1860.1,2.50985129]
[1771871173647,0.00552939,1860.8,1859.9,44.22887777]
[1771871173648,2.19980042,1861.3,1860.3,2.50983129]
[1771871174050,2.19980042,1861.3,1860.5,2.24103129]
[1771871174453,2.20526386,1861.3,1860.5,2.24103129]
[1771871174652,2.20526386,1861.3,1860.5,1.71103129]
[1771871175248,0.00546344,1861.3,1860.5,1.71103129]
[1771871175452,2.20526386,1861.3,1860.5,1.71103129]
[1771871176055,0.00546344,1861.3,1860.7,2.24103129]
[1771871176452,10.166,1861.9,1860.9,2.24103129]
[1771871176659,2.19980042,1861.7,1860.9,2.24103129]
[1771871177253,2.19980042,1861.7,1860.7,2.24103129]
[1771871177451,2.20592176,1861.7,1860.7,2.24103129]
[1771871182662,2.20592176,1861.7,1860.9,2.21541696]
[1771871188261,2.16281214,1861.5,1860.9,2.21541696]
[1771871188864,2.16281214,1861.5,1860.4,2.21541696]
[1771871189064,2.43146214,1861.3,1860.0,2.21541696]
[1771871189260,2.16281214,1861.1,1860.0,2.21541696]
[1771871189461,2.16281214,1860.9,1860.0,2.21541696]
[1771871189661,2.16281214,1860.7,1860.0,2.21541696]
[1771871189862,2.16281214,1860.7,1859.9,0.00577521]
[1771871190260,2.16281214,1860.5,1859.9,0.00577521]
[1771871190663,2.16281214,1860.5,1859.9,2.22119217]
[1771871192069,2.16281214,1860.9,1859.9,2.22119217]
[1771871192271,2.16281214,1860.7,1859.9,2.22119217]
[1771871192568,2.16281214,1860.9,1859.9,2.22119217]
[1771871196174,2.16281214,1860.7,1859.9,2.22119217]
[1771871196571,2.16281214,1860.5,1859.9,0.00577521]
[1771871198174,2.6626461,1860.4,1859.4,2.21541696]
[1771871198370,3.42310256,1860.5,1859.4,2.21541696]
[1771871198371,2.16281214,1860.2,1859.4,2.21541696]
[1771871199178,2.16281214,1860.0,1859.4,0.00677681]
[1771871199680,2.16281214,1859.8,1858.8,2.21541696]
[1771871200171,0.26888,1859.7,1858.6,2.21541696]
[1771871200376,0.26888,1859.7,1858.1,3.42310256]
[1771871200377,2.16281214,1859.4,1858.0,2.21541696]
[1771871200680,2.16281214,1859.4,1858.3,2.21541696]
[1771871201879,2.16281214,1859.6,1858.7,2.21541696]
[1771871202876,2.16281214,1860.1,1858.9,2.21541696]
[1771871203178,2.16281214,1860.1,1859.0,7.08188703]
[1771871203379,2.16281214,1859.7,1859.1,2.21541696]
[1771871204070,2.16281214,1859.7,1858.7,2.21541696]
[1771871204481,2.16281214,1859.7,1858.8,2.21541696]
[1771871204871,2.16281214,1860.1,1859.0,2.21541696]
[1771871205276,2.16281214,1859.9,1859.0,2.21541696]
[1771871205574,2.16281214,1859.9,1858.8,2.21541696]
[1771871205773,2.16281214,1859.7,1858.8,2.21541696]
[1771871206474,2.16281214,1859.5,1858.2,2.21541696]
[1771871206870,2.16281214,1859.5,1858.3,2.21541696]
[1771871210878,2.16281214,1859.5,1858.4,6.98940346]
[1771871211077,2.16281214,1859.5,1858.5,2.06247535]
[1771871211679,2.16281214,1859.5,1858.7,2.06247535]
[1771871212583,2.08779804,1859.9,1858.7,2.06247535]
[1771871214882,2.08779804,1859.7,1858.7,2.06247535]
[1771871217086,2.08779804,1859.7,1858.7,2.33149535]
[1771871220288,2.08779804,1860.1,1859.1,2.06247535]
[1771871222590,0.49509479,1860.0,1859.1,2.06247535]
[1771871222891,0.00462846,1860.2,1859.1,2.06247535]
[1771871222892,2.08779804,1859.9,1859.1,2.06247535]
[1771871223886,2.08779804,1859.9,1859.3,2.06247535]
[1771871224787,2.08779804,1860.1,1859.3,2.06247535]
[1771871224987,0.00462846,1860.2,1859.5,2.06247535]
[1771871225290,0.00462846,1860.2,1859.5,2.06726911]
[1771871226092,2.08779804,1860.5,1859.7,2.06247535]
[1771871226991,2.08779804,1860.5,1859.5,2.06726911]
[1771871227194,2.09475132,1860.5,1859.5,2.06726911]
[1771871228594,2.09475132,1860.5,1859.7,2.06247535]
[1771871230392,2.09475132,1860.5,1859.5,2.06726911]
[1771871231694,2.08779804,1860.3,1859.5,0.00479376]
[1771871234900,2.08779804,1860.3,1859.5,2.06726911]
[1771871236800,2.08779804,1860.1,1859.5,0.00479376]
[1771871237001,2.08779804,1860.1,1859.1,2.06247535]
[1771871238095,2.08779804,1860.1,1859.1,2.06729658]
[1771871240402,2.13139354,1859.9,1859.1,2.06729658]
[1771871241493,2.13139354,1860.1,1859.1,2.06729658]
[1771871241699,2.13139354,1860.1,1859.3,2.22966852]
[1771871241905,2.13139354,1860.3,1859.3,2.22966852]
[1771871247307,2.62847813,1860.2,1859.3,2.22966852]
[1771871247504,2.13139354,1860.2,1859.3,2.22966852]
[1771871251407,2.13139354,1860.2,1859.5,2.22966852]
[1771871251615,2.13139354,1860.4,1859.5,2.22966852]
[1771871252913,2.13139354,1860.4,1859.5,2.23966852]
[1771871257113,2.13139354,1860.2,1859.5,0.01]
[1771871257418,2.13139354,1860.0,1859.5,2.23966852]
[1771871257914,2.13139354,1860.2,1859.5,2.23966852]
[1771871258116,0.00695328,1860.5,1859.5,2.23966852]
[1771871258117,2.13139354,1860.4,1859.5,2.23966852]
[1771871258318,2.62902981,1860.3,1859.5,2.23966852]
[1771871258615,2.13139354,1860.1,1859.5,2.23966852]
[1771871259010,2.13139354,1860.1,1859.5,0.01]
[1771871259211,2.13139354,1859.9,1859.5,0.01]
[1771871259511,2.13139354,1859.7,1859.1,0.00482123]
[1771871259915,2.13139354,1859.5,1859.1,0.00482123]
[1771871260114,2.13139354,1859.5,1859.1,2.23448975]
[1771871260314,2.13139354,1859.5,1859.1,0.00482123]
[1771871260718,2.13139354,1859.5,1859.1,2.23448975]
[1771871262317,2.13139354,1859.5,1859.1,0.00482123]
[1771871262619,2.13139354,1859.5,1858.8,2.22966852]
[1771871263017,2.13139354,1859.3,1858.8,2.22966852]
[1771871263416,2.13139354,1859.3,1858.8,2.23493551]
[1771871264716,2.13139354,1859.4,1858.8,2.23493551]
[1771871266419,2.13139354,1860.1,1858.8,2.23493551]
[1771871266618,2.13139354,1859.9,1858.8,2.23493551]
[1771871266822,2.13139354,1859.7,1858.8,2.23493551]
[1771871269920,2.13139354,1859.7,1858.8,2.50393551]
[1771871271926,2.13139354,1859.7,1859.0,2.11735023]
[1771871275023,2.00077882,1859.9,1859.2,2.11735023]
[1771871276027,2.00077882,1860.0,1859.4,2.11735023]
[1771871279326,2.00077882,1860.0,1859.0,2.11735023]
[1771871279634,2.00077882,1860.0,1859.2,2.11735023]
[1771871280428,2.00077882,1860.0,1859.2,2.38630023]
[1771871281329,2.00077882,1860.4,1859.2,2.11735023]
[1771871281534,2.00077882,1860.4,1859.8,2.11735023]
[1771871284132,2.00077882,1860.4,1859.6,2.11735023]
[1771871284434,2.00077882,1860.4,1859.4,2.11735023]
[1771871289530,2.00077882,1860.4,1859.3,2.11735023]
[1771871290234,2.00077882,1860.4,1859.5,2.11735023]
[1771871293841,2.00077882,1860.4,1859.7,2.11735023]
[1771871299345,2.00077882,1860.4,1859.5,2.04862787]
[1771871306153,2.02441868,1860.2,1859.5,2.04862787]
[1771871307249,2.02441868,1860.2,1859.6,1.92229414]
[1771871309846,2.02441868,1860.0,1859.4,1.92229414]
[1771871310053,2.02441868,1859.8,1859.2,1.92229414]
[1771871311660,2.02441868,1859.9,1859.5,1.92229414]
[1771871312053,2.02441868,1859.9,1859.4,4.46656769]
[1771871312257,2.02441868,1859.9,1859.3,1.92229414]
[1771871312658,2.02441868,1859.9,1859.5,1.92229414]
[1771871313063,2.02441868,1859.9,1859.4,4.46656769]
[1771871313263,2.02441868,1859.9,1859.4,1.92229414]
[1771871313463,2.02441868,1859.9,1859.2,4.46656769]
[1771871313761,2.02441868,1859.9,1859.3,1.92229414]
[1771871316766,2.02441868,1859.7,1858.9,1.92229414]
[1771871321769,2.02441868,1859.7,1859.1,1.92229414]
[1771871322172,2.02441868,1860.4,1859.3,1.92229414]
[1771871322467,2.02441868,1860.2,1859.3,1.92229414]
[1771871323462,2.02441868,1860.2,1859.5,1.92229414]
[1771871325963,2.02441868,1860.2,1859.2,2.19124414]
[1771871326164,2.02441868,1860.2,1859.2,1.92229414]
[1771871327169,2.02441868,1860.0,1859.2,1.92229414]
[1771871327371,2.02441868,1859.8,1859.2,1.92229414]
[1771871342280,2.02441868,1859.8,1858.8,0.27427699]
[1771871342281,1.8225015,1859.6,1858.9,1.79282188]
[1771871343079,12.13011129,1860.5,1859.3,1.79282188]
[1771871343080,1.8225015,1860.0,1859.3,1.79282188]
[1771871344184,1.8225015,1860.4,1859.3,1.79282188]
[1771871344380,1.8225015,1860.2,1859.3,1.79282188]
[1771871344580,1.8225015,1860.0,1859.3,1.79282188]
[1771871346285,0.00695328,1860.5,1859.6,1.79282188]
[1771871346286,1.8225015,1860.4,1859.6,1.79282188]
[1771871346586,1.8225015,1860.2,1859.6,1.79282188]
[1771871352582,1.8225015,1860.2,1859.4,0.26893]
[1771871352583,1.82945478,1860.5,1860.1,1.79282188]
[1771871354388,1.82945478,1860.5,1859.7,2.81383172]
[1771871354389,1.82945478,1860.5,1859.8,1.79282188]
[1771871358295,1.66650586,1860.4,1859.4,1.81325998]
[1771871364795,1.66650586,1860.4,1859.6,1.62415255]
[1771871369595,1.69211867,1860.2,1859.6,1.62415255]
[1771871381907,1.69211867,1860.2,1859.2,1.62415255]
[1771871381908,1.69211867,1860.0,1859.2,1.62415255]
[1771871383210,1.69211867,1860.0,1859.4,1.62415255]
[1771871384106,1.69211867,1860.4,1859.7,1.62415255]
[1771871384303,1.69211867,1860.3,1859.7,1.62415255]
[1771871385606,1.69211867,1860.3,1859.6,1.62415255]
[1771871385811,1.69211867,1860.3,1859.5,1.89306255]
[1771871389206,1.69211867,1860.3,1859.7,2.54375601]
[1771871389410,1.69211867,1860.3,1859.8,1.62514531]
[1771871389815,1.5387331,1860.5,1860.0,1.62514531]
[1771871393108,1.5387331,1860.5,1860.2,1.62514531]
[1771871393310,1.53177982,1860.9,1860.4,1.62514531]
[1771871394015,1.53177982,1860.9,1860.2,1.63076008]
[1771871394317,1.53749779,1860.9,1860.2,1.63076008]
[1771871394614,1.53177982,1860.7,1860.2,0.00561477]
[1771871394816,1.53177982,1860.7,1860.2,1.63076008]
[1771871396614,1.53177982,1860.7,1860.3,1.62514531]
[1771871397807,1.53177982,1860.8,1860.3,1.62514531]
[1771871399017,1.53177982,1860.8,1860.2,2.54937078]
[1771871399018,0.00571797,1860.9,1860.5,1.62514531]
[1771871399714,1.53749779,1860.9,1860.5,1.62514531]
[1771871400317,1.53177982,1861.1,1860.6,2.54375601]
[1771871400514,1.53177982,1861.2,1860.9,1.62514531]
[1771871400720,0.59576946,1861.6,1860.8,4.16890132]
[1771871401018,0.59127188,1861.2,1860.6,1.62514531]
[1771871401218,0.59814803,1861.2,1860.6,1.62514531]
[1771871402121,0.59287077,1861.0,1860.4,1.62514531]
[1771871402421,0.59287077,1860.8,1860.2,1.63076008]
[1771871403020,0.5887091,1860.6,1860.0,1.62514531]
[1771871403315,2.54375601,1860.7,1859.5,0.26891]
[1771871403316,0.5887091,1860.2,1859.6,1.62514531]
[1771871403515,0.5887091,1860.2,1859.7,1.62514531]
[1771871403712,0.5887091,1860.2,1859.5,0.26891]